bitfinex/quotes_ETHUSD_20241023
["timestamp","ask_amount","ask_price","bid_price","bid_amount"]
[1729701461283,3.96496,2522.1,2521.7,9.74957624]
[1729701461486,3.96496,2522.1,2521.7,5.78402624]
[1729701461683,7.9297,2522.2,2521.7,9.74957624]
[1729701461880,3.96481,2522.2,2521.8,3.96538]
[1729701462114,7.92972,2522.2,2521.7,10.3147992]
[1729701462519,3.96504,2522.1,2521.7,6.3492492]
[1729701462818,3.96504,2522.1,2521.7,5.78402624]
[1729701463020,3.96504,2522.1,2521.7,9.74959624]
[1729701463193,7.92971,2522.2,2521.7,9.74959624]
[1729701463726,3.96481,2522.2,2521.7,9.74959624]
[1729701464521,3.96464,2522.3,2521.8,3.96531]
[1729701464816,3.96459,2522.4,2521.9,0.07930435]
[1729701464989,3.96456,2522.4,2521.9,3.96518]
[1729701465692,3.96466,2522.3,2521.7,5.78402624]
[1729701465919,1.0933,2522.5,2521.7,1.0735]
[1729701466215,3.9652,2522.0,2521.7,1.0735]
[1729701466922,1.0933,2522.5,2522.0,3.68203022]
[1729701467090,3.96447,2522.4,2522.0,3.68203022]
[1729701467622,3.96447,2522.4,2522.0,7.64712022]
[1729701467825,1.0098,2522.8,2522.0,7.64712022]
[1729701467984,7.92811,2522.7,2522.2,5.06242]
[1729701468184,1.0098,2522.8,2522.2,5.06242]
[1729701468185,8.93771,2522.8,2522.3,3.96456]
[1729701468386,1.0098,2522.8,2522.3,3.96456]
[1729701468621,3.96403,2522.7,2522.3,3.96456]
[1729701468989,3.96403,2522.7,2522.2,4.77973022]
[1729701469218,7.92817,2522.7,2522.2,8.74451022]
[1729701469395,1.0098,2522.8,2522.0,3.68203022]
[1729701469605,3.9647,2522.3,2521.9,1.0405]
[1729701469923,3.9647,2522.3,2521.9,2.50592573]
[1729701470102,1.0189,2522.3,2521.6,5.55128228]
[1729701470436,1.0189,2522.3,2521.6,1.0405]
[1729701470437,3.96518,2522.0,2521.6,1.0405]
[1729701470730,3.96518,2522.0,2521.6,5.00622]
[1729701471023,1.0189,2522.3,2521.6,5.00622]
[1729701471024,1.0189,2522.3,2521.6,5.08552685]
[1729701471231,3.96479,2522.2,2521.7,9.18744267]
[1729701471695,3.96461,2522.4,2521.8,4.04457676]
[1729701472029,3.96461,2522.4,2521.9,3.96512]
[1729701472388,3.96392,2522.8,2522.3,4.71344999]
[1729701472591,3.964,2522.7,2522.3,4.71344999]
[1729701472888,3.964,2522.7,2522.3,8.67805999]
[1729701473301,3.9638,2522.9,2522.3,9.54576599]
[1729701473518,3.96385,2522.8,2522.3,13.51027599]
[1729701473713,3.96385,2522.8,2522.3,9.54576599]
[1729701474020,3.96402,2522.7,2522.3,9.54576599]
[1729701475223,3.96418,2522.6,2522.2,3.96475]
[1729701475420,3.96437,2522.5,2522.1,3.96494]
[1729701475633,3.96437,2522.5,2522.0,13.74880999]
[1729701476341,3.96418,2522.6,2522.1,0.07928926]
[1729701476629,3.96418,2522.6,2522.2,3.96477]
[1729701476841,3.96418,2522.6,2522.1,0.58979393]
[1729701476994,3.96418,2522.6,2522.1,0.66908321]
[1729701477912,3.96408,2522.7,2522.1,4.63398321]
[1729701478243,3.9642,2522.6,2522.1,0.66908321]
[1729701478541,3.9642,2522.6,2522.2,0.64877332]
[1729701478703,3.96408,2522.7,2522.2,0.64877332]
[1729701478905,3.96419,2522.6,2522.2,0.64877332]
[1729701479104,1.0429,2523.5,2522.3,5.78824999]
[1729701479353,3.96351,2523.1,2522.6,4.71344999]
[1729701479638,5.00565,2523.5,2522.6,5.68872199]
[1729701479639,3.9632,2523.3,2522.6,5.68872199]
[1729701479941,3.96339,2523.1,2522.6,5.68872199]
[1729701481306,3.96339,2523.1,2522.7,0.0792714]
[1729701481501,1.0429,2523.5,2522.6,5.68872199]
[1729701481729,3.96391,2522.8,2522.5,1.0748]
[1729701481934,3.96391,2522.8,2522.5,1.73650021]
[1729701482120,3.96391,2522.8,2522.5,1.0748]
[1729701482547,3.96463,2522.3,2522.1,0.82875206]
[1729701482863,1.0624,2523.0,2522.0,1.0631]
[1729701482864,3.9645,2522.4,2522.0,1.0631]
[1729701483021,7.92906,2522.4,2522.0,1.0631]
[1729701483359,3.9645,2522.4,2522.0,1.0631]
[1729701484059,3.96466,2522.3,2522.0,1.0631]
[1729701484370,1.0481,2522.3,2521.9,0.07929491]
[1729701484657,1.0481,2522.3,2521.5,2.07485204]
[1729701484658,3.96576,2521.6,2521.0,1.0601]
[1729701484858,3.96683,2520.9,2520.8,1.0601]
[1729701485026,3.96683,2520.9,2520.5,1.88355206]
[1729701485224,3.96715,2520.7,2520.6,0.31266801]
[1729701485421,3.96683,2520.9,2520.6,0.31266801]
[1729701485668,3.96683,2520.9,2520.5,1.0548]
[1729701485864,9.01526,2521.3,2520.6,4.04662156]
[1729701486051,3.96631,2521.3,2520.5,1.0548]
[1729701486363,8.0418,2521.6,2520.5,1.0548]
[1729701486364,3.96676,2521.0,2520.5,1.0548]
[1729701486946,3.96708,2520.8,2520.5,1.0548]
[1729701487157,4.97038,2521.1,2520.5,1.631625]
[1729701487363,7.93322,2521.1,2520.5,1.631625]
[1729701487521,1.0038,2521.4,2520.5,1.631625]
[1729701487522,3.96683,2520.9,2520.5,1.631625]
[1729701487729,3.9673,2520.6,2520.2,1.068]
[1729701487958,3.0,2521.3,2520.2,1.068]
[1729701487959,3.96717,2520.7,2520.2,1.068]
[1729701488163,3.96699,2520.8,2520.2,1.068]
[1729701488373,5.05694,2520.9,2520.3,4.04708798]
[1729701488374,3.96694,2520.9,2520.3,4.04708798]
[1729701488543,3.96694,2520.9,2520.3,4.04708504]
[1729701488737,3.96694,2520.9,2520.4,5.62174349]
[1729701488935,3.96668,2521.0,2520.4,9.66868846]
[1729701489135,3.0,2521.3,2520.4,9.66868846]
[1729701489136,3.96633,2521.3,2520.7,8.68048999]
[1729701489339,7.93266,2521.3,2520.7,4.71344999]
[1729701489526,3.96605,2521.4,2520.8,3.9669]
[1729701489743,3.96605,2521.4,2520.9,0.39669]
[1729701489953,3.96605,2521.4,2520.8,3.9669]
[1729701490277,3.96622,2521.3,2520.7,3.96714]
[1729701490444,3.96597,2521.5,2520.8,4.04619901]
[1729701490643,3.96615,2521.4,2520.8,3.96687]
[1729701491579,3.96597,2521.5,2520.9,0.07932652]
[1729701491873,3.96616,2521.4,2520.9,0.80130465]
[1729701492080,3.96616,2521.4,2520.8,3.96685]
[1729701492656,4.1067,2521.8,2520.8,3.96685]
[1729701492657,3.96582,2521.6,2520.8,3.96685]
[1729701492856,3.96582,2521.6,2521.0,3.96667]
[1729701493053,3.96572,2521.7,2521.1,0.07932215]
[1729701493054,3.96589,2521.5,2521.1,0.07932215]
[1729701493275,3.96589,2521.5,2520.9,9.68464999]
[1729701493276,3.96589,2521.5,2520.9,4.9712]
[1729701493467,3.96589,2521.5,2521.0,0.893805]
[1729701493712,3.96608,2521.4,2521.0,0.893805]
[1729701493881,3.96589,2521.5,2521.0,0.893805]
[1729701494247,7.93192,2521.5,2521.0,0.893805]
[1729701494661,3.96589,2521.5,2521.0,0.893805]
[1729701494993,7.93188,2521.5,2521.1,0.5865025]
[1729701495360,3.96589,2521.5,2521.0,0.893805]
[1729701495877,3.96577,2521.6,2521.1,0.9969]
[1729701496062,1.0596,2522.1,2521.1,0.9969]
[1729701496261,3.96565,2521.7,2521.1,4.96341]
[1729701496573,3.96565,2521.7,2521.2,3.96636]
[1729701496883,7.93135,2521.7,2521.3,0.892977]
[1729701497388,3.96565,2521.7,2521.3,0.892977]
[1729701498486,5.02456,2522.1,2521.3,0.892977]
[1729701498487,3.96577,2521.6,2521.3,0.892977]
[1729701498793,7.93158,2521.6,2521.1,1.0762217]
[1729701499253,7.93108,2521.8,2521.2,3.96627]
[1729701499453,3.96552,2521.8,2521.2,3.96627]
[1729701500056,3.96586,2521.6,2521.1,0.9969]
[1729701500298,3.96586,2521.6,2521.1,2.7506525]
[1729701500460,3.966,2521.5,2521.1,2.7506525]
[1729701500653,3.966,2521.5,2521.1,1.07622142]
[1729701500855,3.96586,2521.6,2521.1,1.07622142]
[1729701501062,3.96601,2521.5,2521.1,0.9969]
[1729701501593,7.93169,2521.6,2521.1,0.9969]
[1729701502167,3.96608,2521.4,2521.1,0.9969]
[1729701502382,3.96631,2521.3,2521.1,0.9969]
[1729701502703,3.96608,2521.4,2520.4,1.73704556]
[1729701502704,3.96683,2520.9,2520.5,1.0432]
[1729701502855,3.96683,2520.9,2520.5,1.63510335]
[1729701502856,7.93376,2520.9,2520.5,1.63510335]
[1729701503064,7.93375,2520.9,2520.5,1.63510335]
[1729701503258,3.96701,2520.8,2520.5,1.63510335]
[1729701503467,1.0308,2521.1,2520.5,1.0432]
[1729701504000,3.9669,2520.9,2520.5,1.0432]
[1729701504353,7.93386,2520.9,2520.5,1.0432]
[1729701504557,3.96717,2520.7,2520.1,3.96809]
[1729701504791,7.93445,2520.7,2520.1,5.01639574]
[1729701505194,7.93445,2520.7,2520.1,4.937044]
[1729701506019,3.96754,2520.5,2520.1,0.968954]
[1729701506191,3.96769,2520.4,2520.0,1.008]
[1729701506521,7.93546,2520.4,2520.0,1.008]
[1729701506824,3.96748,2520.5,2520.0,1.008]
[1729701506992,3.96727,2520.7,2520.1,3.96806]
[1729701507315,3.96748,2520.5,2520.1,0.90237201]
[1729701508215,7.93508,2520.5,2520.1,0.90237201]
[1729701508403,3.9677,2520.4,2520.0,1.008]
[1729701508789,7.93545,2520.4,2520.0,1.008]
[1729701508995,3.9677,2520.4,2520.0,1.008]
[1729701509814,7.93547,2520.4,2520.0,1.008]
[1729701510207,3.9677,2520.4,2520.0,1.505655]
[1729701510787,7.93542,2520.4,2520.0,1.505655]
[1729701511417,3.9677,2520.4,2520.0,1.505655]
[1729701511909,3.96732,2520.6,2520.0,5.473895]
[1729701512116,3.9675,2520.5,2520.0,5.55325137]
[1729701512294,3.9675,2520.5,2520.1,0.55532514]
[1729701513620,3.96732,2520.6,2520.1,0.55532514]
[1729701513980,3.96722,2520.7,2520.5,0.001]
[1729701514409,5.05536,2520.9,2520.5,0.001]
[1729701514615,3.96707,2520.8,2520.5,1.0591]
[1729701514996,7.93416,2520.8,2520.5,1.0591]
[1729701515385,3.96707,2520.8,2520.5,1.0591]
[1729701515580,3.96718,2520.7,2520.5,0.001]
[1729701516428,7.93444,2520.7,2520.5,0.001]
[1729701516587,3.96718,2520.7,2520.5,0.001]
[1729701516787,3.9673,2520.6,2520.5,0.001]
[1729701520924,4.01029043,2520.6,2520.5,0.001]
[1729701521528,0.04299043,2520.6,2520.5,0.001]
[1729701523428,4.01029043,2520.6,2520.5,0.001]
[1729701523800,0.04299043,2520.6,2520.5,0.001]
[1729701524003,4.01029043,2520.6,2520.5,0.001]
[1729701525095,8.07509043,2520.6,2520.5,0.001]
[1729701525291,8.63509043,2520.6,2520.5,1e-05]
[1729701525550,9.0489915,2520.6,2520.5,1e-05]
[1729701525893,9.0489915,2520.6,2518.7,4.92613611]
[1729701525894,3.96959,2519.2,2518.9,1.0675]
[1729701526196,3.96967,2519.1,2518.3,0.82654315]
[1729701526398,3.68632139,2519.2,2518.3,0.31059579]
[1729701526399,3.97003,2518.9,2518.3,0.31059579]
[1729701526732,3.9702,2518.8,2518.3,0.31059579]
[1729701526932,3.97003,2518.9,2518.3,4.28144579]
[1729701526933,7.94016,2518.9,2518.3,4.28144579]
[1729701527293,3.97003,2518.9,2518.3,0.31059579]
[1729701527708,3.96956,2519.2,2518.3,0.31059579]
[1729701527709,3.97023,2518.8,2518.3,0.31059579]
[1729701527904,3.97046,2518.6,2518.2,1.0396]
[1729701528109,7.94103,2518.6,2518.2,1.0396]
[1729701528431,3.97046,2518.6,2518.2,1.0396]
[1729701529421,3.97031,2518.7,2518.2,1.0396]
[1729701529741,3.9699,2519.0,2518.3,3.97093]
[1729701529953,3.96999,2518.9,2518.3,3.97082]
[1729701530122,3.96999,2518.9,2518.3,7.94167]
[1729701530322,3.96999,2518.9,2518.3,3.97082]
[1729701530555,3.9693,2519.4,2518.4,1.155713]
[1729701530847,11.01,2519.5,2518.7,3.97026]
[1729701531022,3.96937,2519.3,2518.7,3.97026]
[1729701531217,3.96937,2519.3,2518.6,3.97043]
[1729701531418,3.96961,2519.2,2518.6,3.97043]
[1729701531736,3.96961,2519.2,2518.7,3.97028]
[1729701532246,3.96937,2519.3,2518.8,3.97001]
[1729701532409,3.96937,2519.3,2518.7,0.84533743]
[1729701532611,3.96954,2519.2,2518.7,3.97026]
[1729701533436,3.96984,2519.0,2518.4,5.04695]
[1729701534034,3.97012,2518.9,2518.4,5.04695]
[1729701534216,3.97018,2518.8,2518.4,1.0763]
[1729701534562,3.97001,2518.9,2518.4,1.0763]
[1729701535011,3.97023,2518.8,2518.4,1.0763]
[1729701535652,5.01735,2519.1,2518.4,1.0763]
[1729701535946,3.97,2518.9,2518.5,3.97053]
[1729701536335,3.9698,2519.1,2518.6,3.97044]
[1729701537346,3.96954,2519.2,2518.7,3.97027]
[1729701537556,4.99522,2519.4,2518.8,3.97003]
[1729701537557,3.96939,2519.3,2518.8,3.97003]
[1729701537914,3.96939,2519.3,2518.6,3.97036]
[1729701538116,3.96974,2519.1,2518.6,3.97036]
[1729701538656,3.96951,2519.2,2518.6,3.97036]
[1729701538950,3.96955,2519.2,2518.7,3.97023]
[1729701539136,3.96974,2519.1,2518.7,3.97023]
[1729701539342,3.96974,2519.1,2518.6,3.97038]
[1729701539856,3.96991,2519.0,2518.5,8.69760322]
[1729701540019,3.96991,2519.0,2518.5,3.97052]
[1729701540220,3.96935,2519.3,2518.5,4.72708322]
[1729701540427,3.96974,2519.1,2518.6,3.97036]
[1729701540817,7.9395,2519.1,2518.6,3.97036]
[1729701541017,3.0,2519.6,2518.0,9.02083]
[1729701541018,1.0781,2518.8,2518.0,9.02083]
[1729701541358,3.97078,2518.4,2518.0,5.0495]
[1729701541577,3.97101,2518.3,2517.8,3.97162]
[1729701541715,3.97137,2518.1,2517.5,7.94428]
[1729701542027,3.97141,2518.0,2517.5,4.872868]
[1729701542225,3.97181,2517.8,2517.3,5.03579]
[1729701542455,3.97181,2517.8,2517.4,3.97234]
[1729701543159,1.0524,2518.2,2516.9,5.73928322]
[1729701543325,1.0524,2518.2,2517.3,3.97249]
[1729701543663,3.97189,2517.7,2517.3,3.97249]
[1729701544015,3.97189,2517.7,2517.1,3.97272]
[1729701544221,3.97156,2517.9,2517.3,3.97239]
[1729701544438,3.97195,2517.7,2517.2,4.72708322]
[1729701544643,3.97187,2517.8,2517.2,4.72708322]
[1729701544848,3.97158,2517.9,2517.3,3.9724]
[1729701545127,3.92601,2517.9,2517.4,3.97235]
[1729701545518,7.89768,2517.9,2517.4,3.97235]
[1729701545754,3.92601,2517.9,2517.3,3.9724]
[1729701545924,3.92601,2517.9,2517.4,3.97223]
[1729701546469,7.89769,2517.9,2517.4,3.97223]
[1729701546637,7.89769,2517.9,2517.3,4.93955835]
[1729701546638,3.97174,2517.8,2517.3,4.93955835]
[1729701546828,3.97174,2517.8,2517.3,3.97241]
[1729701547229,3.97195,2517.7,2517.1,4.94389032]
[1729701547547,3.97195,2517.7,2517.2,3.97251]
[1729701547752,3.97195,2517.7,2517.3,3.97249]
[1729701548064,3.97156,2517.9,2517.3,3.97241]
[1729701548357,3.97156,2517.9,2517.4,3.97228]
[1729701548527,3.97174,2517.8,2517.4,3.97228]
[1729701548727,3.97174,2517.8,2517.3,3.97248]
[1729701549065,3.97156,2517.9,2517.3,3.97248]
[1729701549226,3.97142,2518.0,2517.5,5.0501]
[1729701549544,1.0524,2518.2,2517.7,3.97179]
[1729701549545,3.9711,2518.2,2517.7,3.97179]
[1729701549866,3.97094,2518.3,2517.8,3.97169]
[1729701550433,3.97111,2518.2,2517.7,3.97179]
[1729701550646,3.97111,2518.2,2517.8,3.97167]
[1729701551236,3.97126,2518.1,2517.6,3.97193]
[1729701551769,3.97111,2518.2,2517.6,3.97193]
[1729701551977,3.97111,2518.2,2517.8,3.9717]
[1729701552146,4.97056,2518.6,2517.8,3.9717]
[1729701552147,3.97072,2518.5,2518.0,1.0356]
[1729701552476,3.97072,2518.5,2518.0,5.00699]
[1729701552672,3.97081,2518.4,2518.0,5.00699]
[1729701552875,3.97072,2518.5,2518.0,5.00688]
[1729701553171,3.97078,2518.4,2517.9,3.97152]
[1729701553481,3.97078,2518.4,2518.0,3.97139]
[1729701553880,3.97072,2518.5,2518.1,3.97121]
[1729701554085,5.01049,2518.9,2518.1,4.8065081]
[1729701554241,5.01049,2518.9,2518.1,4.72708322]
[1729701554446,3.96959,2519.2,2518.4,3.97076]
[1729701554447,3.97022,2518.8,2518.4,3.97076]
[1729701554785,7.93986,2519.0,2518.5,3.97054]
[1729701554964,1.0557,2519.2,2518.2,0.57626832]
[1729701554965,3.97023,2518.8,2518.3,3.97084]
[1729701555169,3.97055,2518.6,2518.1,3.9712]
[1729701556082,3.97028,2518.8,2518.2,3.97101]
[1729701556299,3.97036,2518.7,2518.3,4.765131]
[1729701556650,3.97015,2518.8,2518.4,3.97064]
[1729701556850,3.96993,2519.0,2518.5,3.97048]
[1729701557187,3.96993,2519.0,2518.5,5.00819]
[1729701557369,3.97003,2518.9,2518.5,5.00819]
[1729701557589,3.97003,2518.9,2518.5,1.0377]
[1729701557788,3.96967,2519.1,2518.5,1.0377]
[1729701557957,3.97,2518.9,2518.5,1.0377]
[1729701558308,3.97,2518.9,2518.5,5.00827]
[1729701558485,7.94006,2518.9,2518.5,1.0377]
[1729701558681,3.96985,2519.0,2518.5,5.00831]
[1729701558888,3.97006,2518.9,2518.5,1.0377]
[1729701559060,3.96985,2519.0,2518.3,0.794221]
[1729701559061,3.9705,2518.6,2518.3,1.092]
[1729701559267,3.97069,2518.5,2518.0,5.06331]
[1729701559465,3.97069,2518.5,2518.0,6.52929962]
[1729701561066,3.97079,2518.4,2518.0,6.52929962]
[1729701561466,3.97079,2518.4,2517.8,8.69866322]
[1729701561699,3.97131,2518.1,2517.7,1.0995]
[1729701561903,3.97149,2518.0,2517.7,1.0995]
[1729701562370,3.97158,2517.9,2517.5,3.97212]
[1729701562572,3.97172,2517.8,2517.4,5.01465]
[1729701562892,7.94358,2517.8,2517.4,1.0424]
[1729701563067,3.97172,2517.8,2517.4,1.0424]
[1729701563267,7.94357,2517.8,2517.4,1.0424]
[1729701563594,3.97195,2517.7,2517.1,5.01507]
[1729701563796,3.97148,2518.0,2517.3,3.97236]
[1729701563967,3.97163,2517.9,2517.4,3.97228]
[1729701564675,7.94299,2518.0,2517.4,3.97235]
[1729701565434,3.97109,2518.2,2517.7,5.07668]
[1729701565596,11.98597,2518.5,2517.8,3.97159]
[1729701565920,3.97099,2518.3,2517.8,4.74493292]
[1729701566122,3.97099,2518.3,2517.8,3.97159]
[1729701566789,3.97099,2518.3,2517.8,7.94322]
[1729701566994,7.94202,2518.3,2517.8,3.97159]
[1729701567317,3.97099,2518.3,2517.7,1.1049]
[1729701567481,3.97118,2518.2,2517.7,5.07675]
[1729701567685,3.97118,2518.2,2517.7,2.009764]
[1729701567907,7.94202,2518.3,2517.7,2.009764]
[1729701568091,7.94202,2518.3,2517.7,5.981614]
[1729701568092,3.9712,2518.2,2517.7,5.981614]
[1729701568299,3.97099,2518.3,2517.7,5.981614]
[1729701568684,3.97099,2518.3,2517.9,3.97149]
[1729701568936,5.01521,2518.5,2517.9,0.9952834]
[1729701569216,3.97078,2518.4,2517.9,0.9952834]
[1729701569392,1.0527,2518.8,2517.7,1.1049]
[1729701569582,3.9703,2518.7,2518.0,3.97132]
[1729701569916,1.0527,2518.8,2518.0,3.97132]
[1729701569917,3.97068,2518.5,2518.0,3.97132]
[1729701570124,3.97078,2518.4,2517.8,3.97158]
[1729701570286,3.97095,2518.3,2517.9,3.97154]
[1729701570482,3.97078,2518.4,2517.9,0.904802]
[1729701570794,3.97094,2518.3,2517.8,3.97157]
[1729701571124,3.97123,2518.2,2517.7,5.90283434]
[1729701571344,3.97123,2518.2,2517.7,5.07664]
[1729701571620,3.97045,2518.6,2517.7,1.93109434]
[1729701571931,3.97187,2517.7,2517.5,0.82619434]
[1729701572078,3.97205,2517.6,2517.3,0.82619434]
[1729701572282,3.97205,2517.6,2517.1,0.82619434]
[1729701572481,3.97205,2517.6,2517.2,3.97266]
[1729701572482,3.9721,2517.6,2517.2,3.97266]
[1729701572695,3.9719,2517.7,2517.2,7.94523]
[1729701573037,3.9719,2517.7,2517.2,8.77142434]
[1729701573241,3.97201,2517.7,2517.2,0.82619434]
[1729701573413,3.97185,2517.8,2517.2,3.97263]
[1729701573737,3.97197,2517.7,2517.2,3.97264]
[1729701573910,3.97184,2517.8,2517.3,3.9725]
[1729701574115,3.97189,2517.7,2517.2,4.79883434]
[1729701574311,3.97189,2517.7,2517.2,8.77142434]
[1729701574517,3.97189,2517.7,2517.2,10.04362479]
[1729701574809,3.97204,2517.6,2517.2,6.07098479]
[1729701575141,3.97204,2517.6,2517.2,4.79878434]
[1729701575435,3.9717,2517.9,2517.2,4.79878434]
[1729701575622,3.97185,2517.8,2517.3,3.9725]
[1729701575934,1.095,2517.7,2517.2,0.82619434]
[1729701576111,3.97226,2517.5,2517.2,0.82619434]
[1729701576514,3.97231,2517.5,2517.2,0.82619434]
[1729701576700,3.97231,2517.5,2517.0,5.03181]
[1729701577239,3.97208,2517.6,2517.1,3.97281]
[1729701577736,3.97219,2517.5,2517.1,3.97281]
[1729701577936,3.97203,2517.7,2517.2,3.97262]
[1729701578147,3.97197,2517.7,2517.2,3.97262]
[1729701578644,7.94394,2517.7,2517.2,3.97262]
[1729701578932,3.97212,2517.6,2517.1,3.97279]
[1729701579132,3.97236,2517.4,2517.1,1.4718045]
[1729701579303,3.97236,2517.4,2517.0,5.03174]
[1729701579498,3.97212,2517.6,2517.0,5.03174]
[1729701579702,3.9722,2517.5,2517.0,5.03174]
[1729701580035,3.9722,2517.5,2517.0,9.00463]
[1729701580204,3.97244,2517.4,2517.0,1.0589]
[1729701580400,3.97214,2517.6,2517.1,3.9727]
[1729701581302,3.97221,2517.5,2517.0,6.01500743]
[1729701581528,3.97221,2517.5,2517.0,6.01499743]
[1729701581529,3.97233,2517.5,2517.0,6.01499743]
[1729701581835,3.97228,2517.5,2517.0,6.01499743]
[1729701582234,3.97259,2517.3,2516.8,4.79946434]
[1729701582435,3.97271,2517.2,2516.8,4.79946434]
[1729701582634,3.97271,2517.2,2516.8,0.82619434]
[1729701582837,3.97299,2517.0,2516.8,0.82619434]
[1729701583138,3.97253,2517.3,2516.8,0.82619434]
[1729701583344,5.06527,2517.4,2516.8,0.82619434]
[1729701583542,5.06527,2517.4,2516.9,3.97299]
[1729701584037,3.97229,2517.5,2516.9,3.97299]
[1729701584240,7.94458,2517.5,2517.0,3.97298]
[1729701584540,3.97237,2517.4,2516.9,4.474529]
[1729701585343,3.97237,2517.4,2516.9,4.474409]
[1729701585539,3.97229,2517.5,2516.9,4.474409]
[1729701585703,3.97229,2517.5,2517.0,3.97295]
[1729701585908,3.97236,2517.4,2516.9,4.474409]
[1729701586248,3.97236,2517.4,2516.9,3.97302]
[1729701586403,3.97229,2517.5,2517.0,3.9729]
[1729701587013,3.97229,2517.5,2517.0,7.9458]
[1729701587540,3.97229,2517.5,2517.1,3.97281]
[1729701588040,3.97229,2517.5,2516.9,3.973]
[1729701588232,3.97229,2517.5,2516.9,4.47439]
[1729701588428,3.97229,2517.5,2517.0,3.97297]
[1729701588920,1.0766,2517.9,2517.1,1.0907]
[1729701589128,4.48929703,2518.7,2517.1,1.0907]
[1729701589129,1.0766,2518.2,2517.3,3.97237]
[1729701589429,3.97158,2517.9,2517.4,3.97228]
[1729701589630,3.97173,2517.8,2517.1,5.06336]
[1729701589803,3.97193,2517.7,2517.2,4.478906]
[1729701590615,3.97193,2517.7,2517.1,1.0907]
[1729701590616,3.97191,2517.7,2517.1,1.0907]
[1729701590843,3.9718,2517.8,2517.3,3.9724]
[1729701591051,3.97148,2518.0,2517.4,3.97233]
[1729701591412,5.0027,2516.7,2516.1,1.0834]
[1729701591568,3.97435,2516.2,2515.8,1.0834]
[1729701591720,3.97425,2516.2,2515.8,1.0834]
[1729701592258,3.97403,2516.4,2515.8,1.0834]
[1729701592562,3.97408,2516.3,2515.8,1.0834]
[1729701593357,3.97431,2516.2,2515.8,1.0834]
[1729701593515,1.0385,2516.1,2515.5,3.97532]
[1729701593721,1.0385,2516.1,2515.5,9.32430776]
[1729701593956,3.97431,2516.2,2515.6,3.97518]
[1729701594462,3.97437,2516.2,2515.5,5.34898776]
[1729701594633,3.97437,2516.2,2515.5,5.34896776]
[1729701595019,3.97415,2516.3,2515.6,3.97505]
[1729701595231,3.97442,2516.1,2515.6,0.64049778]
[1729701595427,3.97448,2516.1,2515.4,5.03156]
[1729701595737,3.97457,2516.0,2515.4,5.0317]
[1729701596259,1.0385,2516.4,2515.4,1.0562]
[1729701596436,5.01244,2516.4,2515.4,5.03159]
[1729701596765,3.97465,2516.0,2515.4,1.0562]
[1729701597071,3.97465,2516.0,2515.4,2.03242075]
[1729701597358,3.97377,2516.5,2515.8,5.04709]
[1729701597564,3.97402,2516.4,2515.8,5.04709]
[1729701597759,7.94808,2516.4,2515.8,6.42233376]
[1729701598067,3.97402,2516.4,2515.8,6.42233376]
[1729701598255,3.97396,2516.4,2515.8,6.42233376]
[1729701598425,3.97391,2516.5,2515.9,3.97466]
[1729701598626,3.97393,2516.4,2515.8,6.42233376]
[1729701598932,1.0371,2516.7,2516.0,3.97448]
[1729701598933,3.97362,2516.6,2516.0,3.97448]
[1729701599249,5.01061,2516.7,2516.0,3.97448]
[1729701599462,3.97362,2516.6,2516.0,3.97448]
[1729701599926,1.0371,2516.7,2515.8,5.04713]
[1729701600128,3.97394,2516.4,2515.9,3.97471]
[1729701600349,3.97377,2516.5,2515.9,7.94931]
[1729701600554,3.97377,2516.5,2515.9,7.94922]
[1729701600752,3.97377,2516.5,2516.0,3.97455]
[1729701600963,5.01071,2516.7,2516.0,3.97455]
[1729701601163,3.97395,2516.4,2515.8,1.0723]
[1729701601468,3.97369,2516.6,2516.0,3.97443]
[1729701601827,1.0371,2516.7,2516.1,3.69926549]
[1729701602026,3.97339,2516.8,2516.3,3.974]
[1729701602530,5.02538,2517.0,2516.5,3.9737]
[1729701602747,3.97353,2516.7,2516.2,1.0716]
[1729701602953,3.97375,2516.6,2516.2,1.0716]
[1729701603994,3.97353,2516.7,2515.7,3.9749]
[1729701603995,1.0732,2516.4,2515.7,3.9749]
[1729701604151,3.97487,2515.8,2515.6,1.0755]
[1729701604480,3.97487,2515.8,2515.3,1.0755]
[1729701604683,3.97487,2515.8,2515.3,5.05107]
[1729701605188,3.9751,2515.7,2515.3,1.0755]
[1729701605652,3.97519,2515.6,2515.3,1.0755]
[1729701606193,3.97487,2515.8,2515.3,3.97557]
[1729701606488,5.04796,2515.9,2515.0,3.69926549]
[1729701606674,3.97542,2515.5,2515.0,3.97604]
[1729701607065,3.97526,2515.6,2515.1,3.97596]
[1729701607593,3.97526,2515.6,2515.1,3.97597]
[1729701607746,7.95061,2515.6,2515.1,3.97597]
[1729701607948,3.97526,2515.6,2515.1,3.97597]
[1729701608142,3.97499,2515.8,2515.1,3.97597]
[1729701608348,3.97499,2515.8,2515.3,3.97565]
[1729701608547,3.97499,2515.8,2515.3,7.95122]
[1729701608787,7.94998,2515.8,2515.3,3.97557]
[1729701608991,1.0732,2515.9,2515.4,1.0413]
[1729701609159,11.01,2516.1,2515.5,3.97522]
[1729701609349,3.97474,2515.9,2515.4,1.0413]
[1729701609554,3.97486,2515.9,2515.4,1.0413]
[1729701609763,3.9751,2515.7,2515.4,1.0413]
[1729701609964,3.97559,2515.4,2515.0,1.0464]
[1729701610291,3.9759,2515.2,2514.7,4.97594]
[1729701610494,1.0057,2515.7,2514.7,4.97594]
[1729701610495,3.97609,2515.1,2514.7,0.9994]
[1729701610707,3.97621,2515.0,2514.4,3.69926549]
[1729701610848,3.97609,2515.1,2514.6,3.97669]
[1729701611048,3.97629,2515.0,2514.5,4.97631]